bitfinex/quotes_BTCUSD_20250218
["timestamp","ask_amount","ask_price","bid_price","bid_amount"]
[1739868159311,0.0018206,95512.0,95504.0,0.0766]
[1739868159509,0.1588686,95512.0,95504.0,0.0766]
[1739868159843,0.0018206,95512.0,95504.0,0.0766]
[1739868160558,0.17378092,95512.0,95504.0,0.0776]
[1739868160708,0.0018206,95512.0,95504.0,0.0766]
[1739868160923,0.157058,95506.0,95504.0,0.0766]
[1739868161123,0.157056,95507.0,95504.0,0.0766]
[1739868161328,0.01674471,95512.0,95504.0,0.0766]
[1739868161555,0.17479271,95512.0,95504.0,0.0786]
[1739868161755,0.22714271,95512.0,95504.0,0.0786]
[1739868161934,0.17379271,95512.0,95504.0,0.0786]
[1739868162125,0.01674471,95512.0,95504.0,0.0786]
[1739868162767,0.01674471,95512.0,95504.0,0.0766]
[1739868163148,0.01774471,95512.0,95504.0,0.0786]
[1739868163352,0.01774471,95512.0,95504.0,0.23366]
[1739868163775,0.01774471,95512.0,95504.0,0.23566]
[1739868163997,0.01774471,95512.0,95504.0,0.0766]
[1739868164208,0.01774471,95512.0,95504.0,0.23366]
[1739868164548,0.01774471,95512.0,95504.0,0.0786]
[1739868166560,0.01774471,95512.0,95504.0,0.23566]
[1739868166980,0.01774471,95512.0,95504.0,0.0786]
[1739868167408,0.17479271,95512.0,95504.0,0.0786]
[1739868167626,0.01774471,95512.0,95504.0,0.0786]
[1739868168658,0.01774471,95512.0,95505.0,0.157059]
[1739868168792,0.01774471,95512.0,95504.0,0.0786]
[1739868168997,0.01774471,95512.0,95505.0,0.157059]
[1739868169273,0.01774471,95512.0,95511.0,0.280949]
[1739868169274,0.0028206,95512.0,95511.0,0.280949]
[1739868169612,0.0018206,95512.0,95511.0,0.38345265]
[1739868170434,0.0018206,95512.0,95511.0,0.38545265]
[1739868170632,0.0018206,95512.0,95511.0,0.4309667]
[1739868170800,0.0018206,95512.0,95511.0,0.4289667]
[1739868171018,0.0028206,95512.0,95511.0,0.4309667]
[1739868171378,0.409317,95549.0,95514.0,0.209391]
[1739868171588,0.0001702,95541.0,95527.0,0.1203]
[1739868171813,0.17841902,95534.0,95527.0,0.1203]
[1739868172020,0.03651621,95534.0,95527.0,0.1203]
[1739868172234,0.157008,95537.0,95528.0,0.157021]
[1739868172444,0.157012,95534.0,95527.0,0.1203]
[1739868172644,0.157018,95530.0,95527.0,0.1203]
[1739868173452,0.157022,95528.0,95527.0,0.1203]
[1739868173690,0.157022,95528.0,95527.0,0.1253]
[1739868174067,0.157022,95528.0,95527.0,0.1303]
[1739868174271,0.157022,95528.0,95527.0,0.1253]
[1739868175123,0.157022,95528.0,95527.0,0.1203]
[1739868175331,0.157022,95528.0,95527.0,0.1253]
[1739868176082,0.157022,95528.0,95527.0,0.1203]
[1739868176283,0.158022,95528.0,95527.0,0.1293]
[1739868176489,0.158022,95528.0,95527.0,0.1253]
[1739868176987,0.001,95528.0,95527.0,0.1293]
[1739868178179,0.15702,95529.0,95527.0,0.1203]
[1739868178392,0.001,95528.0,95527.0,0.1253]
[1739868179324,0.157022,95528.0,95527.0,0.1203]
[1739868179570,0.157022,95528.0,95527.0,0.1253]
[1739868179811,0.157022,95528.0,95527.0,0.1303]
[1739868180052,0.157022,95528.0,95527.0,0.1253]
[1739868180654,0.157022,95528.0,95527.0,0.1203]
[1739868180856,0.157022,95528.0,95527.0,0.1253]
[1739868181374,0.158022,95528.0,95527.0,0.1303]
[1739868181846,0.157022,95528.0,95527.0,0.1253]
[1739868182079,0.158022,95528.0,95527.0,0.1303]
[1739868182529,0.157022,95528.0,95527.0,0.1253]
[1739868182765,0.001,95528.0,95527.0,0.1253]
[1739868183040,0.001,95528.0,95527.0,0.1293]
[1739868183292,0.001,95528.0,95527.0,0.1253]
[1739868183528,0.001,95528.0,95527.0,0.1293]
[1739868187036,0.157016,95532.0,95527.0,0.1203]
[1739868187235,0.001,95528.0,95527.0,0.1303]
[1739868188209,0.001,95528.0,95527.0,0.1253]
[1739868188450,0.17143569,95534.0,95527.0,0.1203]
[1739868188691,0.17143569,95534.0,95527.0,0.1253]
[1739868188907,0.001,95528.0,95527.0,0.1253]
[1739868189402,0.157012,95534.0,95527.0,0.1243]
[1739868189635,0.157012,95534.0,95527.0,0.1246406]
[1739868189862,0.0001703,95530.0,95527.0,0.1246406]
[1739868190089,0.0001703,95530.0,95527.0,0.1236406]
[1739868190350,0.0001703,95530.0,95527.0,0.1206406]
[1739868190592,0.0001703,95530.0,95527.0,0.1236406]
[1739868191538,0.0001703,95530.0,95527.0,0.1206406]
[1739868191791,0.001,95528.0,95527.0,0.1256406]
[1739868192307,0.0001703,95530.0,95527.0,0.1206406]
[1739868192529,0.0001703,95530.0,95527.0,0.1256406]
[1739868193260,0.001,95528.0,95527.0,0.1256406]
[1739868193506,0.001,95528.0,95527.0,0.1316406]
[1739868193713,0.001,95528.0,95527.0,0.1256406]
[1739868194135,0.001,95528.0,95527.0,0.1306406]
[1739868194374,0.001,95528.0,95527.0,0.1256406]
[1739868194696,0.001,95528.0,95527.0,0.1306406]
[1739868195207,0.0001703,95530.0,95527.0,0.1256406]
[1739868195698,0.0011703,95530.0,95527.0,0.1306406]
[1739868196110,0.0011703,95530.0,95527.0,0.1256406]
[1739868196286,0.0011703,95530.0,95527.0,0.1246406]
[1739868196287,0.0001703,95530.0,95527.0,0.1246406]
[1739868196485,0.0011703,95530.0,95527.0,0.1296406]
[1739868196691,0.0011703,95530.0,95527.0,0.1256406]
[1739868196953,0.0001703,95530.0,95529.0,0.15702]
[1739868197254,0.0001703,95530.0,95529.0,0.23546668]
[1739868197374,0.0001703,95530.0,95529.0,0.23442]
[1739868199029,0.0001703,95530.0,95529.0,0.24042]
[1739868199226,0.0001703,95530.0,95529.0,0.24442]
[1739868200894,0.0001703,95530.0,95529.0,0.36263836]
[1739868201113,0.0001703,95530.0,95529.0,0.46514201]
[1739868201923,0.0001703,95530.0,95529.0,0.47300185]
[1739868202101,0.0001703,95530.0,95529.0,0.46700185]
[1739868202335,0.0011703,95530.0,95529.0,0.47000185]
[1739868202535,0.0011703,95530.0,95529.0,0.47500185]
[1739868202917,0.0001703,95530.0,95529.0,0.39178349]
[1739868203122,0.0011703,95530.0,95529.0,0.40578349]
[1739868204107,0.0011703,95530.0,95529.0,0.42878349]
[1739868208232,0.0011703,95530.0,95529.0,0.75728349]
[1739868208718,0.0011703,95530.0,95529.0,0.7470364]
[1739868208924,0.0011703,95530.0,95529.0,0.84954005]
[1739868209165,0.0011703,95530.0,95529.0,0.85771843]
[1739868209415,0.0001703,95530.0,95529.0,0.85071843]
[1739868209655,0.0001703,95530.0,95529.0,1.00771843]
[1739868209949,0.0001703,95530.0,95529.0,1.02771843]
[1739868210650,0.0001703,95530.0,95529.0,1.02071843]
[1739868211057,0.0001703,95530.0,95529.0,1.01371843]
[1739868211288,0.0001703,95530.0,95529.0,1.02071843]
[1739868211898,0.0001703,95530.0,95529.0,1.0414375]
[1739868212258,0.0001703,95530.0,95529.0,1.03325912]
[1739868212463,0.0001703,95530.0,95529.0,1.04025912]
[1739868213170,0.0001703,95530.0,95529.0,1.04842874]
[1739868214208,0.0001703,95530.0,95529.0,1.04876914]
[1739868216488,0.0001703,95530.0,95529.0,1.04823594]
[1739868217116,0.0001703,95530.0,95529.0,1.58703594]
[1739868223988,0.16564591,95570.0,95559.0,0.15697]
[1739868224496,0.156954,95569.0,95559.0,0.15697]
[1739868224648,0.156954,95569.0,95558.0,0.156971]
[1739868224854,0.01808678,95569.0,95558.0,0.156971]
[1739868225037,0.16564491,95570.0,95557.0,0.209298]
[1739868225240,0.16608821,95570.0,95559.0,0.15897]
[1739868225479,0.18487106,95570.0,95559.0,0.15897]
[1739868225682,0.02791806,95570.0,95559.0,0.002]
[1739868225899,0.02791806,95570.0,95560.0,0.05231056]
[1739868226037,0.18487106,95570.0,95560.0,0.05231056]
[1739868226503,0.02791806,95570.0,95560.0,0.05231056]
[1739868227111,0.18487106,95570.0,95560.0,0.05231056]
[1739868227519,0.18487106,95570.0,95559.0,0.156971]
[1739868227836,0.156954,95569.0,95558.0,0.156972]
[1739868228049,0.18487106,95570.0,95559.0,0.156971]
[1739868228257,0.02791806,95570.0,95557.0,0.10250365]
[1739868228651,0.156954,95569.0,95557.0,0.25947665]
[1739868228880,0.02791806,95570.0,95560.0,0.002]
[1739868229029,0.18487106,95570.0,95560.0,0.005]
[1739868229228,0.18487106,95570.0,95560.0,0.002]
[1739868230006,0.02791806,95570.0,95560.0,0.002]
[1739868230223,0.156954,95569.0,95559.0,0.15697]
[1739868230765,0.156954,95569.0,95560.0,0.003]
[1739868230973,0.156954,95569.0,95559.0,0.15697]
[1739868231179,0.156957,95568.0,95560.0,0.002]
[1739868231380,0.209274,95569.0,95560.0,0.002]
[1739868231795,0.209274,95569.0,95557.0,0.25947765]
[1739868231994,0.156956,95569.0,95558.0,0.156971]
[1739868232197,0.156954,95569.0,95559.0,0.003]
[1739868232378,0.23718806,95570.0,95559.0,0.003]
[1739868232571,0.02791806,95570.0,95559.0,0.003]
[1739868232815,0.156956,95569.0,95559.0,0.006]
[1739868233018,0.156954,95569.0,95559.0,0.006]
[1739868233281,0.02791806,95570.0,95557.0,0.10250365]
[1739868233483,0.156956,95568.0,95559.0,0.002]
[1739868233683,0.156956,95568.0,95557.0,0.26147765]
[1739868234100,0.156956,95568.0,95559.0,0.003]
[1739868234303,0.156956,95568.0,95557.0,0.25947765]
[1739868234503,0.156956,95568.0,95559.0,0.003]
[1739868234931,0.209272,95569.0,95559.0,0.003]
[1739868235107,0.02791806,95570.0,95559.0,0.003]
[1739868235673,0.156959,95567.0,95559.0,0.003]
[1739868235995,0.156956,95568.0,95559.0,0.003]
[1739868236194,0.156957,95568.0,95559.0,0.003]
[1739868236424,0.209272,95569.0,95557.0,0.10250365]
[1739868236633,0.02791806,95570.0,95530.0,0.01422876]
[1739868236838,0.23626417,95560.0,95559.0,0.006]
[1739868237040,0.0697,95565.0,95559.0,0.003]
[1739868237236,0.0697,95565.0,95542.0,0.10250365]
[1739868237433,0.17336712,95560.0,95559.0,0.003]
[1739868237675,0.156972,95558.0,95557.0,0.002]
[1739868238018,0.156981,95553.0,95542.0,0.10250365]
[1739868238216,0.23627917,95552.0,95542.0,0.10250365]
[1739868238438,0.209314,95550.0,95536.0,0.1255]
[1739868238639,0.07929517,95547.0,95537.0,0.10250365]
[1739868239956,0.07929517,95547.0,95542.0,0.004]
[1739868240157,0.156987,95549.0,95542.0,0.004]
[1739868240549,0.156989,95548.0,95537.0,0.10850365]
[1739868240712,0.156989,95548.0,95537.0,0.11550365]
[1739868241086,0.156989,95548.0,95537.0,0.10950365]
[1739868241289,0.07929517,95552.0,95537.0,0.10950365]
[1739868241626,0.07929517,95547.0,95542.0,0.006]
[1739868241881,0.07929517,95552.0,95542.0,0.006]
[1739868242088,0.156987,95549.0,95542.0,0.006]
[1739868242292,0.08724171,95552.0,95537.0,0.10250365]
[1739868242293,0.08724171,95552.0,95537.0,0.25950965]
[1739868242491,0.07929517,95547.0,95537.0,0.25950965]
[1739868243315,0.07929517,95547.0,95542.0,0.006]
[1739868243515,0.23627717,95552.0,95542.0,0.006]
[1739868243696,0.23627717,95552.0,95539.0,0.157003]
[1739868244311,0.23627717,95552.0,95538.0,0.157005]
[1739868244509,0.07929517,95547.0,95539.0,0.157003]
[1739868244684,0.07929517,95547.0,95538.0,0.25950865]
[1739868244890,0.07929517,95547.0,95539.0,0.01]
[1739868245306,0.07929517,95547.0,95539.0,0.005]
[1739868246171,0.07929517,95547.0,95538.0,0.26450865]
[1739868246368,0.07929517,95547.0,95538.0,0.26950865]
[1739868246572,0.07929517,95547.0,95538.0,0.11250365]
[1739868246790,0.07929517,95547.0,95538.0,0.10250365]
[1739868247001,0.07929517,95547.0,95529.0,0.0818404]
[1739868247002,0.157004,95539.0,95529.0,0.0818404]
[1739868247233,0.07929517,95539.0,95530.0,0.10250365]
[1739868247949,0.07929517,95539.0,95538.0,0.006]
[1739868248145,0.156998,95543.0,95538.0,0.00706951]
[1739868248374,0.15859034,95548.0,95538.0,0.00706951]
[1739868248554,0.157002,95540.0,95538.0,0.00706951]
[1739868248721,0.157001,95541.0,95538.0,0.00706951]
[1739868248930,0.15859034,95548.0,95538.0,0.00706951]
[1739868249128,0.157002,95541.0,95538.0,0.00706951]
[1739868249350,0.157003,95539.0,95538.0,0.00706951]
[1739868249709,0.157003,95539.0,95538.0,6.951e-05]
[1739868250166,0.157003,95539.0,95538.0,0.00306951]
[1739868250338,0.157003,95539.0,95538.0,6.951e-05]
[1739868250544,0.157002,95541.0,95538.0,6.951e-05]
[1739868250743,0.157003,95539.0,95538.0,0.01206951]
[1739868251508,0.157003,95539.0,95538.0,6.951e-05]
[1739868251686,0.157001,95541.0,95538.0,6.951e-05]
[1739868251942,0.156998,95543.0,95538.0,0.01140991]
[1739868252828,0.36790934,95548.0,95538.0,0.01140991]
[1739868253036,0.156998,95543.0,95538.0,0.00040991]
[1739868253395,0.156995,95545.0,95538.0,0.01240991]
[1739868253607,0.156997,95544.0,95538.0,0.00640991]
[1739868253820,0.156997,95544.0,95538.0,0.00040991]
[1739868254027,0.156997,95544.0,95538.0,0.00340991]
[1739868254229,0.156997,95543.0,95538.0,0.00340991]
[1739868254604,0.156997,95543.0,95538.0,0.00440991]
[1739868256233,0.156997,95543.0,95538.0,0.00540991]
[1739868256426,0.156999,95542.0,95538.0,0.00040991]
[1739868256628,0.016401,95546.0,95538.0,0.00540991]
[1739868256629,0.157001,95541.0,95538.0,0.00540991]
[1739868256858,0.157001,95541.0,95538.0,0.01040991]
[1739868257251,0.156999,95542.0,95538.0,0.01040991]
[1739868257485,0.156999,95542.0,95538.0,0.00540991]
[1739868257609,0.156999,95542.0,95538.0,0.00040991]
[1739868257807,0.156997,95543.0,95538.0,0.01040991]
[1739868258043,0.156997,95543.0,95538.0,0.00540991]
[1739868258258,0.156999,95542.0,95538.0,0.00540991]
[1739868258668,0.156998,95543.0,95538.0,0.00540991]
[1739868259049,0.156998,95543.0,95538.0,0.00040991]
[1739868259470,0.156998,95543.0,95538.0,0.00540991]
[1739868259876,0.156998,95543.0,95538.0,0.01040991]
[1739868260338,0.016401,95546.0,95538.0,0.00540991]
[1739868260584,0.016401,95546.0,95538.0,0.01040991]
[1739868260782,0.156999,95542.0,95538.0,0.01040991]
[1739868261383,0.156999,95542.0,95538.0,0.00540991]
[1739868261735,0.156997,95543.0,95538.0,0.00940991]
[1739868261968,0.156999,95542.0,95538.0,0.00940991]
[1739868262149,0.156999,95542.0,95538.0,0.00440991]
[1739868262361,0.156997,95543.0,95538.0,0.00440991]
[1739868262578,0.156999,95542.0,95538.0,0.00840991]
[1739868262975,0.156999,95542.0,95538.0,0.00040991]
[1739868263286,0.156999,95542.0,95538.0,0.01040991]
[1739868264981,0.209323,95546.0,95538.0,0.01040991]
[1739868265183,0.156997,95544.0,95538.0,0.01040991]
[1739868265538,0.156997,95543.0,95538.0,0.01040991]
[1739868265742,0.156997,95543.0,95538.0,0.00540991]
[1739868266147,0.156997,95543.0,95538.0,0.00440991]
[1739868266375,0.156995,95545.0,95538.0,0.00940991]
[1739868266601,0.156998,95543.0,95538.0,0.00540991]
[1739868266773,0.156998,95543.0,95538.0,0.00040991]
[1739868266976,0.156998,95543.0,95538.0,0.01040991]
[1739868267399,0.156998,95543.0,95538.0,0.00540991]
[1739868267529,0.156998,95543.0,95538.0,0.00940991]
[1739868267936,0.156997,95544.0,95538.0,0.00540991]
[1739868268383,0.156997,95543.0,95538.0,0.00540991]
[1739868268918,0.01640092,95546.0,95538.0,0.00540991]
[1739868268919,0.01640092,95546.0,95538.0,0.00040991]
[1739868269124,0.156997,95544.0,95538.0,0.00440991]
[1739868269258,0.22572492,95546.0,95538.0,0.00940991]
[1739868269456,0.156997,95543.0,95538.0,0.00940991]
[1739868269718,0.156997,95543.0,95538.0,0.00540991]
[1739868270032,0.01640092,95546.0,95538.0,0.00540991]
[1739868270241,0.01640092,95546.0,95539.0,0.0821]
[1739868270447,0.156997,95543.0,95539.0,0.0821]
[1739868270643,0.156995,95544.0,95539.0,0.0821]
[1739868270879,0.17339292,95546.0,95540.0,0.0498]
[1739868271087,0.01640092,95546.0,95545.0,0.156994]
[1739868271296,0.01640092,95546.0,95540.0,0.0498]
[1739868271497,0.01640092,95546.0,95541.0,0.156999]
[1739868271823,0.01640092,95546.0,95540.0,0.0498]
[1739868272882,0.01640092,95546.0,95542.0,0.156997]
[1739868273085,0.01640092,95546.0,95543.0,0.0781]
[1739868274209,0.07929517,95550.0,95543.0,0.0821]
[1739868275460,0.07929517,95550.0,95543.0,0.0781]
[1739868275883,0.0001702,95546.0,95543.0,0.0811]
[1739868276491,0.0001702,95546.0,95543.0,0.0831]
[1739868276899,0.0001702,95546.0,95543.0,0.0811]
[1739868277161,0.0001702,95546.0,95543.0,0.0781]
[1739868277321,0.0001702,95546.0,95543.0,0.0821]
[1739868277533,0.0001702,95546.0,95543.0,0.0861]
[1739868277928,0.00460867,95545.0,95543.0,0.0861]
[1739868278759,0.0001702,95546.0,95543.0,0.0821]
[1739868278968,0.0001702,95546.0,95543.0,0.0861]
[1739868279177,0.00460863,95545.0,95543.0,0.0861]
[1739868279378,0.00460863,95545.0,95543.0,0.0821]
[1739868279532,0.00460863,95545.0,95543.0,0.0781]
[1739868279736,0.0001702,95546.0,95543.0,0.0861]
[1739868280150,0.00461018,95545.0,95543.0,0.0821]
[1739868280347,0.00461018,95545.0,95543.0,0.0871]
[1739868280613,0.0001702,95546.0,95543.0,0.0871]
[1739868280785,0.00461011,95544.0,95543.0,0.0821]
[1739868280992,0.0001702,95546.0,95543.0,0.0821]
[1739868281193,0.00461011,95544.0,95543.0,0.0861]
[1739868281395,0.0001702,95546.0,95543.0,0.0861]
[1739868281561,0.00461011,95544.0,95543.0,0.0861]
[1739868281771,0.0001702,95546.0,95543.0,0.0861]
[1739868282173,0.0001702,95546.0,95543.0,0.0821]
[1739868282393,0.00461173,95545.0,95543.0,0.0821]
[1739868282593,0.00461173,95545.0,95543.0,0.0861]
[1739868282800,0.0001702,95546.0,95543.0,0.0821]
[1739868283021,0.0001702,95546.0,95543.0,0.0871]
[1739868283218,0.0001702,95546.0,95543.0,0.0831]
[1739868283420,0.00460518,95545.0,95543.0,0.0781]
[1739868283768,0.0001702,95546.0,95543.0,0.0871]
[1739868283946,0.0001702,95546.0,95543.0,0.0821]
[1739868284117,0.0001702,95546.0,95543.0,0.0781]
[1739868284286,0.00460518,95545.0,95543.0,0.0821]
[1739868284486,0.00460518,95545.0,95543.0,0.0781]
[1739868284971,0.0001702,95546.0,95543.0,0.0781]
[1739868285350,0.0001702,95546.0,95543.0,0.0831]
[1739868285691,0.00460518,95545.0,95543.0,0.0831]
[1739868285902,0.00460518,95545.0,95543.0,0.0871]
[1739868286106,0.0001702,95546.0,95543.0,0.0871]
[1739868286562,0.00460518,95545.0,95543.0,0.0831]
[1739868286771,0.0001702,95546.0,95543.0,0.0781]
[1739868286947,0.00459891,95544.0,95543.0,0.0861]
[1739868287165,0.0001702,95546.0,95543.0,0.0861]
[1739868287370,0.00460046,95544.0,95543.0,0.0861]
[1739868287580,0.0001702,95546.0,95543.0,0.0821]
[1739868288113,0.00497667,95545.0,95543.0,0.0871]
[1739868288324,0.00497667,95545.0,95543.0,0.0821]
[1739868288650,0.00497667,95545.0,95543.0,0.0861]
[1739868289192,0.0001702,95546.0,95543.0,0.0821]
[1739868289553,0.00497977,95545.0,95543.0,0.0861]
[1739868289756,0.0001702,95546.0,95543.0,0.0861]
[1739868289974,0.00497815,95544.0,95543.0,0.0781]
[1739868290195,0.0001702,95546.0,95543.0,0.0821]
[1739868290400,0.00497815,95544.0,95543.0,0.0871]
[1739868290599,0.0001702,95546.0,95543.0,0.0821]
[1739868290902,0.0001702,95546.0,95543.0,0.0781]
[1739868290903,0.00531528,95544.0,95543.0,0.0781]
[1739868291112,0.0001702,95546.0,95543.0,0.0831]
[1739868291283,0.0001702,95546.0,95543.0,0.0871]
[1739868291438,0.00531691,95545.0,95543.0,0.0871]
[1739868291998,0.0001702,95546.0,95543.0,0.0871]
[1739868292207,0.00531528,95544.0,95543.0,0.0871]
[1739868292428,0.0001702,95546.0,95543.0,0.0821]
[1739868292561,0.00531528,95544.0,95543.0,0.0861]
[1739868292766,0.0001702,95546.0,95543.0,0.0861]
[1739868292986,0.0001702,95546.0,95544.0,0.156994]
[1739868293166,0.0001702,95546.0,95543.0,0.0781]
[1739868293351,0.0001702,95546.0,95544.0,0.156994]
[1739868293559,0.0001702,95546.0,95543.0,0.297428]
[1739868293795,0.0001702,95546.0,95543.0,0.0781]
[1739868294042,0.00561877,95545.0,95543.0,0.0821]
[1739868294283,0.0001702,95546.0,95544.0,0.004]
[1739868294516,0.0001702,95546.0,95544.0,0.008]
[1739868295048,0.0001702,95546.0,95545.0,0.3392442]
[1739868295310,0.0001702,95546.0,95545.0,0.33819765]
[1739868296084,0.0001702,95546.0,95545.0,0.38619765]
[1739868296613,0.0001702,95546.0,95545.0,0.39019765]
[1739868296857,0.0001702,95546.0,95545.0,0.39419765]
[1739868297095,0.0001702,95546.0,95545.0,0.38619765]
[1739868297349,0.0001702,95546.0,95545.0,0.40019765]
[1739868298080,0.0001702,95546.0,95545.0,0.5027013]
[1739868305515,0.07929517,95560.0,95558.0,0.156971]
[1739868305731,0.0267015,95591.0,95569.0,0.156954]
[1739868305732,0.0003406,95577.0,95569.0,0.156954]
[1739868305938,0.01639848,95574.0,95562.0,0.0457]
[1739868306166,0.07929517,95572.0,95567.0,0.156956]
[1739868306381,0.01639848,95574.0,95562.0,0.14820365]
[1739868306598,0.09491481,95572.0,95568.0,0.156955]
[1739868306815,0.01639848,95574.0,95568.0,0.156955]
[1739868307029,0.07929517,95580.0,95562.0,0.14820365]
[1739868307201,0.07929517,95572.0,95562.0,0.17205402]
[1739868307402,0.07929517,95572.0,95562.0,0.17105402]
[1739868307617,0.07929517,95572.0,95567.0,0.156957]
[1739868307812,0.156942,95577.0,95568.0,0.001]
[1739868308013,0.156942,95577.0,95567.0,0.156957]
[1739868308197,0.20925,95579.0,95564.0,0.156961]
[1739868308394,0.07929517,95574.0,95567.0,0.001]
[1739868308572,0.156943,95576.0,95567.0,0.001]
[1739868308823,0.15859034,95580.0,95567.0,0.001]
[1739868309036,0.09569123,95590.0,95568.0,0.18424996]
[1739868309228,0.02102137,95589.0,95570.0,0.0459]
[1739868309443,0.07929517,95590.0,95571.0,0.19989485]
[1739868309671,0.156923,95588.0,95576.0,0.209256]
[1739868309889,0.07929517,95590.0,95573.0,0.0813]
[1739868310095,0.07929517,95590.0,95578.0,0.156939]
[1739868310294,0.07929517,95590.0,95579.0,0.03417888]
[1739868310502,0.156928,95585.0,95574.0,0.25944865]
[1739868310723,0.156931,95583.0,95574.0,0.10250365]
[1739868310912,0.07929517,95584.0,95574.0,0.10250365]
[1739868311724,0.07929517,95584.0,95574.0,0.10450365]
[1739868311932,0.23622517,95584.0,95574.0,0.10450365]
[1739868312279,0.07929517,95584.0,95574.0,0.26144965]
[1739868312467,0.23622517,95584.0,95574.0,0.10450365]
[1739868313129,0.23622517,95584.0,95574.0,0.10650365]
[1739868313542,0.31552034,95584.0,95574.0,0.10450365]
[1739868313745,0.31552034,95584.0,95574.0,0.10750365]
[1739868314112,0.23622517,95584.0,95574.0,0.10450365]
[1739868314317,0.07929517,95584.0,95574.0,0.10450365]
[1739868314532,0.23622517,95584.0,95574.0,0.10750365]
[1739868315100,0.07929517,95584.0,95574.0,0.10750365]
[1739868315301,0.07929517,95584.0,95574.0,0.26444865]
[1739868315888,0.23622617,95584.0,95574.0,0.10750365]
[1739868316080,0.156931,95583.0,95574.0,0.10750365]
[1739868316727,0.156931,95583.0,95574.0,0.10550365]
[1739868317249,0.209242,95583.0,95574.0,0.10850365]
[1739868317631,0.156938,95579.0,95574.0,0.10850365]
[1739868317802,0.15694,95578.0,95574.0,0.10850365]
[1739868318007,0.156937,95580.0,95574.0,0.10850365]
[1739868318153,0.15859034,95584.0,95574.0,0.10850365]
[1739868318363,0.156937,95580.0,95574.0,0.10550365]
[1739868318572,0.156938,95579.0,95574.0,0.10250365]
[1739868318767,0.15859034,95584.0,95574.0,0.004]
[1739868318999,0.156944,95575.0,95574.0,0.004]
[1739868319203,0.15859034,95584.0,95574.0,0.007]
[1739868319374,0.156944,95575.0,95574.0,0.007]
[1739868319577,0.209256,95577.0,95574.0,0.007]
[1739868319777,0.156944,95576.0,95574.0,0.004]
[1739868319977,0.156945,95575.0,95567.0,0.0769]
[1739868320230,0.156947,95574.0,95568.0,0.10250365]
[1739868321026,0.156944,95576.0,95568.0,0.10250365]
[1739868321228,0.07929517,95577.0,95568.0,0.10250365]
[1739868321447,0.07929517,95577.0,95569.0,0.156954]
[1739868321646,0.07929517,95577.0,95569.0,0.10250365]
[1739868321889,0.07929517,95577.0,95574.0,0.003]
[1739868322245,0.156939,95578.0,95574.0,0.003]
[1739868322450,0.156938,95579.0,95569.0,0.10250365]
[1739868322668,0.07929517,95579.0,95569.0,0.10250365]
[1739868322872,0.209254,95578.0,95569.0,0.10550365]
[1739868323073,0.07929517,95579.0,95569.0,0.10550365]
[1739868323273,0.156948,95573.0,95569.0,0.10550365]
[1739868323481,0.156953,95570.0,95569.0,0.003]
[1739868323692,0.156953,95570.0,95569.0,0.002]
[1739868323914,0.156953,95570.0,95569.0,0.005]
[1739868324122,0.156953,95570.0,95569.0,0.002]
[1739868324521,0.156953,95570.0,95569.0,0.006]
[1739868324726,0.156953,95570.0,95569.0,0.002]
[1739868324931,0.156956,95568.0,95567.0,0.0769]
[1739868326372,0.209271,95570.0,95567.0,0.0772404]
[1739868326578,0.156956,95568.0,95567.0,0.0832404]
[1739868326996,0.156956,95568.0,95567.0,0.0892404]
[1739868328477,0.156956,95568.0,95567.0,0.0123404]
[1739868328675,0.306956,95568.0,95567.0,0.0123404]
[1739868329581,0.306956,95568.0,95567.0,0.0063404]
[1739868329783,0.306956,95568.0,95567.0,0.0113404]
[1739868330064,0.306956,95568.0,95567.0,0.0053404]
[1739868330267,0.306956,95568.0,95567.0,0.0103404]
[1739868331102,0.306956,95568.0,95567.0,0.0053404]
[1739868331515,0.306956,95568.0,95567.0,0.0023404]
[1739868331725,0.306956,95568.0,95567.0,0.0033404]
[1739868332319,0.306956,95568.0,95567.0,0.0023404]
[1739868332530,0.306956,95568.0,95567.0,0.0033404]
[1739868333189,0.306956,95568.0,95567.0,0.0013404]
[1739868333442,0.306956,95568.0,95567.0,0.0033404]
[1739868336871,0.38114515,95568.0,95567.0,0.0033404]
[1739868337088,0.44747198,95568.0,95567.0,0.0033404]
[1739868337315,1.27711598,95568.0,95567.0,0.0033404]
[1739868337967,1.20292683,95568.0,95567.0,0.0033404]
[1739868339250,2.03223283,95568.0,95567.0,0.0033404]
[1739868339461,1.87169783,95568.0,95567.0,0.0033404]
[1739868339662,1.94139783,95568.0,95567.0,0.0033404]
[1739868340535,0.147072,95546.0,95542.0,0.0473]
[1739868340743,0.147072,95546.0,95545.0,0.0007837]
[1739868341629,0.147072,95546.0,95545.0,0.0037837]
[1739868342050,0.147072,95546.0,95545.0,0.0067837]
[1739868342256,0.1626704,95546.0,95545.0,0.0037837]
[1739868342498,0.1626704,95546.0,95545.0,0.0067837]
[1739868342910,0.1626704,95546.0,95545.0,0.0037837]
[1739868343335,0.1626704,95546.0,95545.0,0.0007837]
[1739868343720,0.1626704,95546.0,95545.0,0.0037837]
[1739868344785,0.1626704,95546.0,95545.0,0.0067837]
[1739868344996,0.1626704,95546.0,95545.0,0.0037837]
[1739868345187,0.1626704,95546.0,95545.0,0.0067837]
[1739868345589,0.0155984,95546.0,95545.0,0.0067837]
[1739868346026,0.156986,95550.0,95545.0,0.0067837]
[1739868346232,0.00589216,95546.0,95545.0,0.0067837]
[1739868346438,0.156988,95549.0,95545.0,0.0067837]
[1739868346647,0.156989,95548.0,95545.0,0.0067837]
[1739868346824,0.0058954,95548.0,95545.0,0.0067837]
[1739868347253,0.0215032,95548.0,95546.0,0.0803]
[1739868347450,0.156982,95553.0,95546.0,0.0803]
[1739868347655,0.156982,95552.0,95546.0,0.0803]
[1739868347866,0.00590189,95552.0,95546.0,0.0803]
[1739868348403,0.156981,95553.0,95546.0,0.0853]
[1739868348666,0.00550773,95552.0,95546.0,0.0853]
[1739868349058,0.15699,95547.0,95546.0,0.0833]
[1739868349392,0.15699,95547.0,95546.0,0.0853]
[1739868349599,0.16248962,95547.0,95546.0,0.0853]
[1739868349814,0.16248962,95547.0,95546.0,0.0823]
[1739868350039,0.00549962,95547.0,95546.0,0.0823]
[1739868350253,0.16248962,95547.0,95546.0,0.0843]